Cogmind - Beta 13 @@@ ROGUE MODE // 2024.06.09 @ 20:44:28 Player: Trantor Result: Self-destructed Performance ------------- Evolutions (4) 2000 Regions Visited (6) 1200 Robots Destroyed (73) 365 Value Destroyed (2112) 2112 Prototype IDs (8) 160 Alien Tech Used (0) 0 Bonus (102) 102 TOTAL SCORE: 5939 Bonus ------- High Alert Combat Kills 104 Follower Combat Kills 37 Friendly Fire -39 Cogmind --------- Core Integrity 850/850 Matter 270/300 Energy 290/290 System Corruption 0% Temperature Cool (0) Movement Walking (270) Ox2 Location -6/Factory Parts ------- > --- POWER (1) -------- Improved Deuterium Engine > --- PROPULSION (6) --- Titanium Leg > --- UTILITY (6) ------ Improved Heat Sink Medium Storage Unit Weapon Cycler Transmission Jammer Improved Light Armor Plating Reflective Plating > --- WEAPON (2) ------- Beamcaster Heavy Particle Cannon > --- INVENTORY (10) --- Micro Nuclear Core Improved Cesium-ion Thruster Compact Matter Pod (150) Improved Particle Charger System Shield Enhanced Autogun Rocket Launcher Heavy Rocket Launcher Faulty Rocket Array Hammer Peak State ------------ > --- POWER ------------ Improved Deuterium Engine > --- PROPULSION ------- Titanium Leg VSS Leg Improved Carbon-fiber Leg Armored Huge Wheel > --- UTILITY ---------- Improved Heat Sink Medium Storage Unit Heavy Armor Plating Shield Generator > --- WEAPON ----------- Advanced Beam Rifle Enhanced Autogun > --- INVENTORY -------- Improved Deuterium Engine Compact Matter Pod Weapon Cycler Reflective Plating System Shield Heavy Particle Cannon Flak Cannon Rocket Launcher Heavy Rocket Launcher Hammer [Rating: 45] Favorites ----------- Power Improved Deuterium Engine Engine Improved Deuterium Engine Power Core Nuclear Core Propulsion Aluminum Leg Leg Aluminum Leg Wheel Compact Wheel Utility Medium Storage Unit Device Improved Heat Sink Storage Medium Storage Unit Protection Heavy Armor Plating Weapon Flak Cannon Energy Gun Advanced Beam Rifle Energy Cannon Heavy Particle Cannon Ballistic Gun Assault Rifle Ballistic Cannon Flak Cannon Launcher Grenade Launcher Build | -11 -10 -9 -8 -7 -7 -6 ------- Run | Yrd Mat Mat Mat Fac Sto Fac Slots Evolved 8 | . . 2 2 2 . 2 Power . | . . . . . . . Propulsion 4 | . . 1 1 1 . 1 Utility 4 | . . 1 1 1 . 1 Weapon . | . . . . . . . Parts Attached 68 | . 8 12 19 8 18 3 Power 8 | . 1 1 4 1 . 1 Engine 4 | . . 1 1 1 . 1 Core 4 | . 1 . 3 . . . Reactor . | . . . . . . . Propulsion 21 | . 3 3 6 2 7 . Treads . | . . . . . . . Leg 18 | . 3 3 6 2 4 . Wheel 3 | . . . . . 3 . Hover . | . . . . . . . Flight . | . . . . . . . Utility 13 | . 2 2 1 3 4 1 Device 6 | . 1 . 1 2 1 1 Storage 2 | . 1 . . 1 . . Processor . | . . . . . . . Hackware . | . . . . . . . Protection 5 | . . 2 . . 3 . Artifact . | . . . . . . . Weapon 26 | . 2 6 8 2 7 1 Energy Gun 8 | . 1 1 3 1 2 . Energy Cannon 1 | . . . . . . 1 Ballistic Gun 3 | . . 1 1 . 1 . Ballistic Cannon 4 | . . 2 1 . 1 . Launcher 10 | . 1 2 3 1 3 . Special Weapon . | . . . . . . . Impact Weapon . | . . . . . . . Slashing Weapon . | . . . . . . . Piercing Weapon . | . . . . . . . Special Melee Weapon . | . . . . . . . Unidentified Prototypes 4 | . . 1 3 . . . Parts Lost 13 | . 1 1 . . 11 . Power 2 | . . 1 . . 1 . Propulsion 6 | . . . . . 6 . Utility 3 | . . . . . 3 . Weapon 2 | . 1 . . . 1 . Highest Loss Streak 4 | . 1 1 . . 4 . To Critical Strikes . | . . . . . . . Average Slot Usage (%) 89 | . 95 97 89 92 82 66 Engine 4 | . 3 5 1 2 6 6 Core 4 | . 11 5 6 4 . . Leg 30 | . 28 31 36 38 24 6 Wheel 1 | . . . . . 6 . Device 12 | . 10 10 8 15 14 20 Storage 9 | . 14 11 9 7 7 6 Protection 6 | . . 10 9 7 6 13 Energy Gun 8 | . 15 10 6 6 6 6 Ballistic Gun 2 | . 9 4 . . . . Ballistic Cannon 5 | . . 1 10 7 6 . Launcher 1 | . 2 5 . . . . Naked Turns . | . . . . . . . Heaviest Build 48 | 14 20 42 43 46 48 41 Greatest Support 58 | 20 20 30 40 58 58 17 Greatest Overweight (x) 2 | . . 1 1 . 2 2 Average Overweight (x) . | . . . . . . 2 Largest Inventory Capacity 10 | . 10 10 10 10 10 10 Average Capacity 9 | . 9 10 10 10 10 10 Most Carried 10 | . 9 10 10 10 10 10 Average Carried 9 | . 8 9 9 9 9 7 Final Capacity 10 | 8 10 10 10 10 10 10 Final Carried 10 | 6 9 10 10 10 9 10 Class Distribution -------------------- 54% | Scavenger-Mutant 45% | Mutant Dominant Class ---------------- Mutant | -10/Materials Mutant | -9/Materials Scavenger-Mutant | -8/Materials Scavenger-Mutant | -7/Factory Scavenger-Mutant | -7/Storage Mutant | -6/Factory Resources | -11 -10 -9 -8 -7 -7 -6 ----------- Run | Yrd Mat Mat Mat Fac Sto Fac Matter Collected 1938 | 200 196 255 593 51 643 . Remotely . | . . . . . . . Salvage Created 2057 | . 317 326 648 92 674 . Parts 130 | . 22 21 51 6 30 . Haulers Intercepted 4 | . . . 3 . 1 . Recyclers Shooed 2 | . . 1 . . 1 . Parts Field Recycled . | . . . . . . . Retrieved Matter . | . . . . . . . Parts Self-Destructed . | . . . . . . . Prevented . | . . . . . . . Kills | -11 -10 -9 -8 -7 -7 -6 ------- Run | Yrd Mat Mat Mat Fac Sto Fac Combat Hostiles Destroyed 56 | . 8 8 17 4 19 . Guns 21 | . 5 6 2 1 7 . Cannons 9 | . . . 5 . 4 . AOE 25 | . 3 2 10 3 7 . Classes Destroyed 13 | . 4 3 3 . 3 . Worker 2 | . . . 2 . . . Builder 1 | . . . . . 1 . Tunneler 1 | . . . 1 . . . Hauler 4 | . . . 3 . 1 . Recycler 5 | . 1 1 2 . 1 . Operator 1 | . . 1 . . . . Watcher 3 | . 1 . 1 . 1 . Swarmer 20 | . 3 . 11 3 3 . Grunt 22 | . 5 6 4 . 7 . Brawler 1 | . . 1 . . . . Duelist 1 | . . . . . 1 . Sentry 10 | . . 1 2 1 6 . Hunter 2 | . . . . . 2 . Best Kill Streak 9 | . 3 4 7 3 9 . Combat Bots Only 8 | . 3 3 5 3 8 . Max Kills in Single Turn 4 | . 2 1 4 2 3 . Gunslinging . | . . . . . . . Exploded 3 | . 1 1 3 2 2 . Melee . | . . . . . . . Uniques/NPCs Destroyed . | . . . . . . . Combat | -11 -10 -9 -8 -7 -7 -6 -------- Run | Yrd Mat Mat Mat Fac Sto Fac Hostile Shots Fired 519 | . 51 20 23 49 376 . Missed 173 | . 9 4 12 20 128 . Damage Taken 3139 | . 474 274 139 166 2086 . Core 424 | . 81 70 8 7 258 . Absorbed by Shields 570 | . . . . 73 497 . Ignored by Resistances 16 | . . . . . 16 . Core Remaining (%) 81 | 100 67 82 98 . 62 . Volleys Fired 167 | . 35 19 27 5 81 . Largest 2 | . 2 2 2 2 2 . Hottest 119 | . 70 86 105 105 119 . Shots Fired 292 | . 62 37 49 8 136 . Gun 185 | . 58 28 22 3 74 . Cannon 77 | . . . 22 3 52 . Launcher 30 | . 4 9 5 2 10 . Special . | . . . . . . . Kinetic 126 | . 27 10 31 3 55 . Thermal 136 | . 31 18 13 3 71 . Explosive 30 | . 4 9 5 2 10 . Electromagnetic . | . . . . . . . Robot Hit Streak 16 | . 16 7 11 5 16 . Robot Miss Streak 5 | . 3 3 5 1 4 . Penetration Max . | . . . . . . . Secondary Targets . | . . . . . . . Shots Hit Robots 209 | . 47 19 36 4 103 . Core Hits 188 | . 19 16 51 8 94 . Critical Kills . | . . . . . . . Critical Parts Destroyed . | . . . . . . . Critical Strikes 8 | . 4 . . . 4 . Burn 8 | . 4 . . . 4 . Melee Attacks . | . . . . . . . Impact . | . . . . . . . Slashing . | . . . . . . . Piercing . | . . . . . . . Sneak Attacks . | . . . . . . . Combat Hostiles . | . . . . . . . Follow-up Attacks . | . . . . . . . Damage Inflicted 6956 | . 874 649 1607 226 3600 . Guns 2306 | . 636 245 303 40 1082 . Cannons 1566 | . . . 397 65 1104 . Explosions 3084 | . 238 404 907 121 1414 . Melee . | . . . . . . . Ramming . | . . . . . . . Kinetic 2045 | . 289 53 520 65 1118 . Thermal 1887 | . 347 252 180 40 1068 . Explosive 3024 | . 238 344 907 121 1414 . Electromagnetic . | . . . . . . . Impact . | . . . . . . . Slashing . | . . . . . . . Piercing . | . . . . . . . Highest Corruption 3 | . . . . . 3 . Average Corruption 1 | . . . . . 1 . Corruption Purged . | . . . . . . . Corruption Blocked . | . . . . . . . Effects 6 | . . . . . 6 . Message Errors 1 | . . . . . 1 . Heat Flow Errors 3 | . . . . . 3 . Energy Discharges 1 | . . . . . 1 . Data Loss (major) 1 | . . . . . 1 . Overload Shots . | . . . . . . . Overflow Damage 103 | . . 50 32 . 21 . Projectiles . | . . . . . . . Explosions 103 | . . 50 32 . 21 . Melee . | . . . . . . . Knockbacks 26 | . . . 12 . 14 . Impact . | . . . . . . . Kinetic 24 | . . . 10 . 14 . Secondary 2 | . . . 2 . . . Self-Inflicted Damage 140 | . 40 74 16 . 10 . Shots 5 | . 1 2 1 . 1 . Rammed . | . . . . . . . Targets Rammed . | . . . . . . . Kicked . | . . . . . . . Crushed . | . . . . . . . Highest Temperature 354 | . 191 198 99 20 354 . Average Temperature 87 | . 74 73 26 17 108 . Received Heat Transfer 878 | . 195 87 81 44 471 . Effects 3 | . . . . . 3 . Energy Bleed 1 | . . . . . 1 . Interference 2 | . . . . . 2 . Siege Activations . | . . . . . . . Robots Corrupted . | . . . . . . . Combat Hostiles . | . . . . . . . Parts Fried . | . . . . . . . Impact Corruptions . | . . . . . . . Robots Melted 1 | . . . . . 1 . Combat Hostiles 1 | . . . . . 1 . Parts Melted 4 | . 3 1 . . . . Heat Transferred 4288 | . 1258 457 333 74 2166 . Parts Sabotaged . | . . . . . . . Parts Stolen . | . . . . . . . Parts Stripped . | . . . . . . . Power Chain Reactions . | . . . . . . . Alert | -11 -10 -9 -8 -7 -7 -6 ------- Run | Yrd Mat Mat Mat Fac Sto Fac Peak Influence 530 | . 188 405 468 336 530 170 Initial 212 | . . 54 87 212 68 170 Average 221 | . 82 234 259 248 262 170 Maximum Alert Level 2 | . . 2 2 1 2 . Low Security (%) 51 | . 100 36 54 25 36 100 Level 1 36 | . . 61 20 74 39 . Level 2 11 | . . 1 24 . 23 . Level 3 . | . . . . . . . Level 4 . | . . . . . . . Level 5 . | . . . . . . . High Security . | . . . . . . . Max Security . | . . . . . . . Squads Dispatched 8 | . . 2 1 . 5 . Investigation . | . . . . . . . Extermination 1 | . . . . . 1 . Reinforcement 5 | . . 2 1 . 2 . Assault 2 | . . . . . 2 . Garrison . | . . . . . . . Intercept . | . . . . . . . Searches Triggered . | . . . . . . . Construction Impeded 1 | . . . . . 1 . Haulers Reinforced . | . . . . . . . Active Scanning Responses . | . . . . . . . Cargo Convoy Interrupts . | . . . . . . . Stealth | -11 -10 -9 -8 -7 -7 -6 --------- Run | Yrd Mat Mat Mat Fac Sto Fac Distress Signals 8 | . 2 1 3 . 2 . Communications Jammed 9 | . . . . . 9 . Distress Signals 9 | . . . . . 9 . Times Spotted 94 | . 17 13 25 5 34 . Peak Tracking Total 6 | . 4 3 6 3 6 . Tactical Retreats 6 | . 4 . 1 . 1 . Traps | -11 -10 -9 -8 -7 -7 -6 ------- Run | Yrd Mat Mat Mat Fac Sto Fac Traps Triggered 3 | . . . . . 3 . Indirectly . | . . . . . . . Trap Hack Attempts . | . . . . . . . Triggered . | . . . . . . . Disarmed . | . . . . . . . Reprogrammed . | . . . . . . . Reused . | . . . . . . . Traps Extracted . | . . . . . . . Installed . | . . . . . . . Triggered . | . . . . . . . Machines | -11 -10 -9 -8 -7 -7 -6 ---------- Run | Yrd Mat Mat Mat Fac Sto Fac Machines Disabled 6 | . . 3 . . 3 . Max in Single Turn 2 | . . 2 . . 1 . Machines Repaired . | . . . . . . . Machines Dismantled . | . . . . . . . Machines Sabotaged . | . . . . . . . Overloaded Fab Kills . | . . . . . . . Hacking | -11 -10 -9 -8 -7 -7 -6 --------- Run | Yrd Mat Mat Mat Fac Sto Fac Machines Accessed 22 | . 5 4 6 3 4 . Terminals 14 | . 3 3 4 1 3 . Fabricators 2 | . . . . 2 . . Repair Stations . | . . . . . . . Recycling Units 5 | . 2 . 2 . 1 . Scanalyzers 1 | . . 1 . . . . Garrison Access . | . . . . . . . Total Hacks 47 | . 10 14 13 3 7 . Successful 25 | . 6 9 7 1 2 . Failed 22 | . 4 5 6 2 5 . Catastrophic 7 | . 1 2 2 1 1 . Database Lockouts . | . . . . . . . Manual 27 | . 8 6 8 . 5 . Terminals 33 | . 8 9 10 1 5 . Fabricators 2 | . . . . 2 . . Repair Stations . | . . . . . . . Recycling Units 7 | . 2 . 3 . 2 . Scanalyzers 5 | . . 5 . . . . Garrison Access . | . . . . . . . Terminal Hacks 10 | . 3 2 4 1 . . Robot Analysis 3 | . 2 . 1 . . . Prototype ID Bank 2 | . 1 . 1 . . . Open DSF 1 | . . . . 1 . . Level Access Points 1 | . . . 1 . . . Branch Access Points 2 | . . 1 1 . . . Dispatch Records 1 | . . 1 . . . . Fabricator Hacks . | . . . . . . . Repair Station Hacks . | . . . . . . . Recycling Unit Hacks 4 | . 2 . 1 . 1 . Report Inventory 4 | . 2 . 1 . 1 . Scanalyzer 5 | . . 5 . . . . Insert Component 2 | . . 2 . . . . Analyze 3 | . . 3 . . . . Garrison Access Hacks . | . . . . . . . Unauthorized Hacks 6 | . 1 2 2 . 1 . Terminals 6 | . 1 2 2 . 1 . Botnet 6 | . 1 2 2 . 1 . Fabricators . | . . . . . . . Repair Stations . | . . . . . . . Recycling Units . | . . . . . . . Scanalyzers . | . . . . . . . Garrison Access . | . . . . . . . Data Cores Recovered . | . . . . . . . Used . | . . . . . . . Hacking Detections 19 | . 3 4 6 2 4 . Full Trace Events 1 | . . 1 . . . . Feedback Events . | . . . . . . . Feedback Blocked . | . . . . . . . Robot Schematics Acquired . | . . . . . . . Robots Built . | . . . . . . . Authchips . | . . . . . . . Time . | . . . . . . . Total Robot Build Rating . | . . . . . . . Part Schematics Acquired 2 | . . 2 . . . . Parts Built . | . . . . . . . Authchips . | . . . . . . . Time . | . . . . . . . Total Part Build Rating . | . . . . . . . Parts Repaired . | . . . . . . . Time . | . . . . . . . Parts Recycled . | . . . . . . . Recycled Matter . | . . . . . . . Retrieved Matter . | . . . . . . . Retrieved Components . | . . . . . . . Parts Scanalyzed 2 | . . 2 . . . . Part Schematics Acquired 2 | . . 2 . . . . Parts Damaged . | . . . . . . . Bothacking | -11 -10 -9 -8 -7 -7 -6 ------------ Run | Yrd Mat Mat Mat Fac Sto Fac Used RIF Installer . | . . . . . . . Robots Hacked . | . . . . . . . Non-combat . | . . . . . . . Combat . | . . . . . . . Robot Hacks Applied . | . . . . . . . Relay Couplers Released . | . . . . . . . Fabnet Peak Effective % . | . . . . . . . Robots Rewired . | . . . . . . . Allies Hacked . | . . . . . . . Hacks Repelled . | . . . . . . . Allies | -11 -10 -9 -8 -7 -7 -6 -------- Run | Yrd Mat Mat Mat Fac Sto Fac Total Allies 2 | . . . . . 2 . Largest Group 2 | . . . . . 2 . Highest-Rated Group 62 | . . . . . 62 . Highest-Rated Ally 31 | . . . . . 31 . Total Orders . | . . . . . . . Ally Attacks 22 | . . . . . 22 . Total Damage 332 | . . . . . 332 . Kills 2 | . . . . . 2 . Allies Corrupted . | . . . . . . . Allies Melted . | . . . . . . . Intel | -11 -10 -9 -8 -7 -7 -6 ------- Run | Yrd Mat Mat Mat Fac Sto Fac Robot Analysis Total 3 | . 2 . 1 . . . Derelict Logs Recovered . | . . . . . . . Drone Launches . | . . . . . . . Drone Recoveries . | . . . . . . . Exploration | -11 -10 -9 -8 -7 -7 -6 ------------- Run | Yrd Mat Mat Mat Fac Sto Fac Turns Passed 3251 | . 566 497 677 538 874 99 Spaces Moved 1728 | 1 337 280 289 410 377 34 Core . | . . . . . . . Treads . | . . . . . . . Legs 1548 | 1 337 280 289 410 197 34 Wheels 180 | . . . . . 180 . Hover . | . . . . . . . Flight . | . . . . . . . Fastest Speed 115 | 120 120 120 120 120 115 270 Average Speed 137 | 120 120 128 181 120 132 270 Slowest Speed 270 | 120 120 190 190 120 270 270 Overloaded Moves . | . . . . . . . Propulsion Burnouts . | . . . . . . . Robots Hopped . | . . . . . . . Cave-ins Triggered . | . . . . . . . Exploration Rate (%) 23 | 3 36 24 34 8 58 1 Regions Visited 6 Branch Regions 1 Pre-discovered Areas . | . . . . . . . Known Exits Taken 1 | . . . 1 . . . Unknown Exits Taken 5 | 1 1 1 . 1 1 . Scrap Searched . | . . . . . . . Spaces Dug 35 | . . . 31 4 . . Terrain Destroyed 217 | . 4 93 49 8 63 . Melee . | . . . . . . . Projectile 1 | . . . . . 1 . AOE 216 | . 4 93 49 8 62 . Terrain Rammed . | . . . . . . . Walls Destroyed . | . . . . . . . Machines Disabled . | . . . . . . . Actions | -11 -10 -9 -8 -7 -7 -6 --------- Run | Yrd Mat Mat Mat Fac Sto Fac Total 2324 | . 436 388 399 448 612 41 Wait 298 | . 51 51 46 20 130 . Move 1722 | . 336 279 288 409 376 34 Hop . | . . . . . . . Pick Up 25 | . 2 10 5 2 2 4 Fast Attach 21 | . 3 6 5 . 7 . Attach 12 | . . 2 2 3 2 3 Detach 1 | . . . . 1 . . Swap 35 | . 5 4 12 5 9 . Drop 43 | . 4 17 14 3 5 . Fire 167 | . 35 19 27 5 81 . Melee . | . . . . . . . Ram . | . . . . . . . Kick . | . . . . . . . Crush . | . . . . . . . Escape Stasis . | . . . . . . . Rewire . | . . . . . . . Trap . | . . . . . . . Miscellaneous . | . . . . . . . Route ------- -11/Scrapyard -10/Materials -9/Materials (discovered 2 exits: *Mat / Min) -8/Materials (discovered 3 exits: *Fac x3) -7/Factory -7/Storage -6/Factory History --------- Turn | Location | Event 1 | -11/Scrapyard | Discovered new exit (range 0) 1 | -11/Scrapyard | Entered Materials 303 | -10/Materials | Build established: Mutant 500 | -10/Materials | Discovered new exit (range 11) 567 | -10/Materials | Entered another Materials area 567 | -9/Materials | Evolved 2 slots: Propulsion x1, Utility x1 1005 | -9/Materials | Identified exit to Mines 1015 | -9/Materials | Discovered new exit (range 4) 1064 | -9/Materials | Entered another Materials area 1064 | -8/Materials | Evolved 2 slots: Propulsion x1, Utility x1 1436 | -8/Materials | Identified exit to Factory 1692 | -8/Materials | Build established: Scavenger-Mutant 1741 | -8/Materials | Entered Factory 1741 | -7/Factory | Evolved 2 slots: Propulsion x1, Utility x1 1756 | -7/Factory | Discovered new exit (range 7) 1757 | -7/Factory | Identified exit to DSF 2279 | -7/Factory | Entered Storage 2589 | -7/Storage | Lost 4 parts (3n1u) 2878 | -7/Storage | Met a pair of Derelict thieves 2983 | -7/Storage | Destroyed 8 combat bots 3069 | -7/Storage | Discovered new exit (range 14) 3153 | -7/Storage | Entered Factory 3153 | -6/Factory | Evolved 2 slots: Propulsion x1, Utility x1 3180 | -6/Factory | Lost 4 parts (1p3n) 3243 | -6/Factory | Found Prototype Launcher 3252 | -6/Factory | Self-destructed Last Messages --------------- 03096_ Acquired 5 matter. 03113_ ALERT: Rogue bot located, Programmers report to Storage Zone 8A. 03124_ W-25 Informer distress signal jammed. 03128_ U-05 Engineer destroyed. 03128_ W-25 Informer distress signal jammed. 03132_ W-25 Informer sends out distress signal. 03133_ Imp. Carbon-fiber Leg destroyed. 03146_ Carbon-fiber Leg destroyed. 03146_ Imp. Deuterium Engine destroyed. 03149_ Arm. Huge Wheel destroyed. PARAMETERS=PROPULSION+1,UTILITY+1 LOCATION=UNKNOWN GOAL=ESCAPE 03181_ Acquired Imp. Particle Charger. 03195_ Acquired Mic. Nuclear Core. 03202_ Acquired Prototype Flight Unit. 03243_ Acquired Prototype Launcher. Map ----- +----------------------------------------------------+ | ????????????????????????????????????????????? | | ????????????????????????????????????????????? | | ????????????????????????????????????????????? | | ????????????????????????????????????????????? | | ????????????????????????????????????????????? | | ????????????????????????????????????????????? | | ????????????????????????????????????????????? | | ????????????????????????????????????????????? | | ????????????????????????????????????????????? | | ????????????????????????????????????????????? | | ????????????????????????????????????????????? | | ????????????????????????????????????????????? | | ????????????????????????????????????????????? | | ????????????????????????????????????????????? | | ????????????????????????????????????????????? | | ????????????????????????????????????????????? | | ????????????????????????????????????????????? | | ??????????##################+#####??????????? | | ??????????# ?????????? | | ??????????# ?????????? | | ??????????# ????????? | | ??????????# ????????? | | ??????????# ????????? | | ?????????#####+######+#######???????????????? | | ?????????# """ """ # #???????????????? | | ?????????# """ """ #@ #???????????????? | | ?????????# """ """ #]] #???????????????? | | ?????????# # #???????????????? | | ?????????# # #???????????????? | | ?????????# # """ +???????????????? | | ?????????# # """ #???????????????? | | ?????????# # """ #???????????????? | | ?????????########### #???????????????? | | ???????????????????##########???????????????? | | ????????????????????????????????????????????? | | ????????????????????????????????????????????? | | ????????????????????????????????????????????? | | ????????????????????????????????????????????? | | ????????????????????????????????????????????? | | ????????????????????????????????????????????? | | ????????????????????????????????????????????? | | ????????????????????????????????????????????? | | | | | | | | | | | | | | | | | +----------------------------------------------------+ Best States ------------- Heat Dissipation 48 Energy Generation 16 Energy Capacity 290 Matter Stores 300 Matter Capacity 300 Sight Range 16 Robot Scan Range 14 Terrain Scan Density 10 Jamming Range 12 Armor Coverage 600 Resistance: TH 10 Weapon Cycling 15 Evasion (%) 55 Item Schematics ----------------- Hrd. Light Armor Plating | -9/Materials | Scanalyzed Imp. Medium Laser | -9/Materials | Scanalyzed Robot Schematics ------------------ None Fabricated ------------ Nothing Alien Tech Used ----------------- None Achievements -------------- None Challenges ------------ None Game ------ Seed ComponentIntegratedAmplifier Manual? 0 Play Time 00:42:08 Cumulative 296.7 hours Start 2024.06.09 @ 20:02:12 End 2024.06.09 @ 20:44:28 Sessions 1 Manual Loads 0 Difficulty Rogue Special Mode None Game No. 180 Rogue 136 Adventurer 44 Explorer 0 Win Type - Total 2 Types 2/0/0/0/0/0/0/0/0 Lore% 58 Gallery% 63 Achievement% 58 Wizard Run 0 Options --------- Layout 2 ASCII 0 Keyboard 1 Movement Vi Keybinds 1 Fullscreen 2 Font 24/Smallcaps Map View 50x44 Zoom Use 0% Tactical HUD 1 Map Filters NONE Filters NONE Steam 1 RUN: ebd860ae-d266-45e7-b555-dc65d55f6af3